Workbook

Sheet 1
A1: Школа | B1: МБОУ СОШ № 11 | I1: День | J1: 2022-09-03
A3: Прием пищи | B3: Раздел | C3: № рец. | D3: Блюдо | E3: Выход, г | F3: Цена | G3: Калорийность | H3: Белки | I3: Жиры | J3: Углеводы
A4: Завтрак | B4: гор.блюдо | D4: ='[1]Меню младшие 1-4 кл Осень-Зима'!B209 -> Плоды и ягоды свежие (яблоки) | E4: ='[1]Меню старшие 5-11 кл Осень-Зима'!C158 -> 100 | G4: ='[1]Меню старшие 5-11 кл Осень-Зима'!G158 -> 43.00 | H4: ='[1]Меню старшие 5-11 кл Осень-Зима'!D158 -> 0.90 | I4: ='[1]Меню старшие 5-11 кл Осень-Зима'!E158 -> 0.20 | J4: ='[1]Меню старшие 5-11 кл Осень-Зима'!F158 -> 8.10
B5: гор.напиток | D5: ='[1]Меню младшие 1-4 кл Осень-Зима'!B210 -> Пельмени мясные отварные с маслом сливочным | E5: ='[1]Меню старшие 5-11 кл Осень-Зима'!C159 -> 195/5 | G5: ='[1]Меню старшие 5-11 кл Осень-Зима'!G159 -> 402.03 | H5: ='[1]Меню старшие 5-11 кл Осень-Зима'!D159 -> 16.49 | I5: ='[1]Меню старшие 5-11 кл Осень-Зима'!E159 -> 21.19 | J5: ='[1]Меню старшие 5-11 кл Осень-Зима'!F159 -> 43.00
B6: хлеб | D6: ='[1]Меню младшие 1-4 кл Осень-Зима'!B211 -> Чай с мармеладом | E6: ='[1]Меню старшие 5-11 кл Осень-Зима'!C160 -> 185/15 | G6: ='[1]Меню старшие 5-11 кл Осень-Зима'!G160 -> 48.15 | H6: ='[1]Меню старшие 5-11 кл Осень-Зима'!D160 -> 0.09 | I6: ='[1]Меню старшие 5-11 кл Осень-Зима'!E160 -> 0.02 | J6: ='[1]Меню старшие 5-11 кл Осень-Зима'!F160 -> 11.91
D7: ='[1]Меню младшие 1-4 кл Осень-Зима'!B212 -> Хлеб пшеничный | E7: ='[1]Меню старшие 5-11 кл Осень-Зима'!C161 -> 40 | G7: ='[1]Меню старшие 5-11 кл Осень-Зима'!G161 -> 94.00 | H7: ='[1]Меню старшие 5-11 кл Осень-Зима'!D161 -> 3.04 | I7: ='[1]Меню старшие 5-11 кл Осень-Зима'!E161 -> 0.32 | J7: ='[1]Меню старшие 5-11 кл Осень-Зима'!F161 -> 19.68
D8: ='[1]Меню младшие 1-4 кл Осень-Зима'!B213 -> Хлеб ржаной | E8: ='[1]Меню старшие 5-11 кл Осень-Зима'!C162 -> 30 | G8: ='[1]Меню старшие 5-11 кл Осень-Зима'!G162 -> 59.40 | H8: ='[1]Меню старшие 5-11 кл Осень-Зима'!D162 -> 1.98 | I8: ='[1]Меню старшие 5-11 кл Осень-Зима'!E162 -> 0.36 | J8: ='[1]Меню старшие 5-11 кл Осень-Зима'!F162 -> 11.88
A10: Завтрак 2 | B10: фрукты | D10: ='[2]Дотация 8,30 руб.'!B84 -> Печенье | E10: ='[2]Дотация 8,30 руб.'!C84 -> 30 | G10: ='[2]Дотация 8,30 руб.'!H84 -> 125.1 | H10: ='[2]Дотация 8,30 руб.'!E84 -> 2.25 | I10: ='[2]Дотация 8,30 руб.'!F84 -> 2.94 | J10: ='[2]Дотация 8,30 руб.'!G84 -> 22.32
D11: ='[2]Дотация 8,30 руб.'!B85 -> Компот из сухофруктов | E11: ='[2]Дотация 8,30 руб.'!C85 -> 200 | G11: ='[2]Дотация 8,30 руб.'!H85 -> 92.80 | H11: ='[2]Дотация 8,30 руб.'!E85 -> 0.66 | I11: ='[2]Дотация 8,30 руб.'!F85 -> 0.09 | J11: ='[2]Дотация 8,30 руб.'!G85 -> 12.01
A12: Обед
